fUSD/lending_fUSD_20260218
["ID","MTS","AMOUNT","RATE_DAILY","PERIOD"]
[405948575,1771437041756,-503.42296453,9.315e-05,2]
[405948576,1771437041767,-500.0,9.315e-05,2]
[405948577,1771437041778,-500.0,9.315e-05,2]
[405948578,1771437041787,-500.0,9.369e-05,2]
[405948579,1771437041799,-649.63591877,9.369e-05,2]
[405948580,1771437041809,-500.0,9.369e-05,2]
[405948581,1771437041819,-500.0,9.369e-05,2]
[405948582,1771437041828,-500.0,9.369e-05,2]
[405948583,1771437041838,-420.0,9.369e-05,2]
[405948584,1771437041849,-1052.0,9.369e-05,2]
[405948585,1771437041859,-644.0,9.369e-05,2]
[405948586,1771437041869,-1061.0,9.369e-05,2]
[405948587,1771437041878,-534.0,9.369e-05,2]
[405948588,1771437041887,-708.0,9.369e-05,2]
[405948589,1771437041896,-567.0,9.369e-05,2]
[405948590,1771437041907,-621.0,9.369e-05,2]
[405948591,1771437041916,-500.0,9.369e-05,2]
[405948592,1771437041926,-500.0,9.369e-05,2]
[405948593,1771437041939,-500.0,9.424e-05,2]
[405948594,1771437041948,-500.0,9.424e-05,2]
[405948595,1771437041959,-500.0,9.424e-05,2]
[405948596,1771437041968,-500.0,9.424e-05,2]
[405948597,1771437041978,-420.0,9.424e-05,2]
[405948598,1771437041988,-1052.0,9.424e-05,2]
[405948599,1771437041997,-644.0,9.424e-05,2]
[405948600,1771437042007,-1061.0,9.424e-05,2]
[405948601,1771437042016,-534.0,9.424e-05,2]
[405948602,1771437042026,-708.0,9.424e-05,2]
[405948603,1771437042035,-567.0,9.424e-05,2]
[405948604,1771437042045,-621.0,9.424e-05,2]
[405948605,1771437042054,-500.0,9.424e-05,2]
[405948606,1771437042064,-500.0,9.424e-05,2]
[405948607,1771437042074,-500.0,9.479e-05,2]
[405948608,1771437042084,-500.0,9.479e-05,2]
[405948609,1771437042094,-500.0,9.479e-05,2]
[405948610,1771437042105,-500.0,9.479e-05,2]
[405948611,1771437042115,-420.0,9.479e-05,2]
[405948612,1771437042125,-1052.0,9.479e-05,2]
[405948613,1771437042136,-644.0,9.479e-05,2]
[405948614,1771437042146,-1061.0,9.479e-05,2]
[405948615,1771437042156,-534.0,9.479e-05,2]
[405948616,1771437042166,-708.0,9.479e-05,2]
[405948617,1771437042175,-567.0,9.479e-05,2]
[405948618,1771437042185,-621.0,9.479e-05,2]
[405948619,1771437042195,-500.0,9.479e-05,2]
[405948620,1771437042204,-500.0,9.479e-05,2]
[405948621,1771437042215,-1600.0,9.5e-05,2]
[405948622,1771437042224,-482.0,9.534e-05,2]
[405948623,1771437042233,-500.0,9.534e-05,2]
[405948624,1771437042243,-622.0,9.534e-05,2]
[405948625,1771437042253,-500.0,9.534e-05,2]
[405948626,1771437042263,-420.0,9.534e-05,2]
[405948627,1771437042272,-1052.0,9.534e-05,2]
[405948628,1771437042282,-644.0,9.534e-05,2]
[405948629,1771437042292,-1061.0,9.534e-05,2]
[405948630,1771437042302,-534.0,9.534e-05,2]
[405948631,1771437042311,-708.0,9.534e-05,2]
[405948632,1771437042321,-567.0,9.534e-05,2]
[405948633,1771437042330,-621.0,9.534e-05,2]
[405948634,1771437042340,-500.0,9.534e-05,2]
[405948635,1771437042349,-500.0,9.534e-05,2]
[405948636,1771437042358,-500.0,9.589e-05,2]
[405948637,1771437042367,-500.0,9.589e-05,2]
[405948638,1771437042376,-420.0,9.589e-05,2]
[405948639,1771437042386,-1052.0,9.589e-05,2]
[405948640,1771437042395,-644.0,9.589e-05,2]
[405948641,1771437042406,-1061.0,9.589e-05,2]
[405948642,1771437042415,-534.0,9.589e-05,2]
[405948643,1771437042424,-708.0,9.589e-05,2]
[405948644,1771437042434,-567.0,9.589e-05,2]
[405948645,1771437042443,-621.0,9.589e-05,2]
[405948646,1771437042453,-500.0,9.589e-05,2]
[405948647,1771437042463,-500.0,9.589e-05,2]
[405948648,1771437042475,-500.0,9.643e-05,2]
[405948649,1771437042488,-500.0,9.643e-05,2]
[405948650,1771437042499,-420.0,9.643e-05,2]
[405948651,1771437042509,-1052.0,9.643e-05,2]
[405948652,1771437042519,-644.0,9.643e-05,2]
[405948653,1771437042529,-1061.0,9.643e-05,2]
[405948654,1771437042543,-534.0,9.643e-05,2]
[405948655,1771437042554,-708.0,9.643e-05,2]
[405948656,1771437042564,-567.0,9.643e-05,2]
[405948657,1771437042574,-621.0,9.643e-05,2]
[405948658,1771437042586,-500.0,9.643e-05,2]
[405948659,1771437042596,-500.0,9.643e-05,2]
[405948660,1771437042606,-500.0,9.698e-05,2]
[405948661,1771437042618,-500.0,9.698e-05,2]
[405948662,1771437042630,-420.0,9.698e-05,2]
[405948663,1771437042639,-1052.0,9.698e-05,2]
[405948664,1771437042649,-644.0,9.698e-05,2]
[405948665,1771437042660,-1061.0,9.698e-05,2]
[405948666,1771437042670,-534.0,9.698e-05,2]
[405948667,1771437042681,-708.0,9.698e-05,2]
[405948668,1771437042690,-567.0,9.698e-05,2]
[405948669,1771437042699,-621.0,9.698e-05,2]
[405948670,1771437042708,-500.0,9.698e-05,2]
[405948671,1771437042716,-500.0,9.698e-05,2]
[405948672,1771437042726,-500.0,9.753e-05,2]
[405948673,1771437042735,-500.0,9.753e-05,2]
[405948674,1771437042744,-420.0,9.753e-05,2]
[405948675,1771437042753,-1052.0,9.753e-05,2]
[405948677,1771437042964,-644.0,9.753e-05,2]
[405948678,1771437042975,-1061.0,9.753e-05,2]
[405948679,1771437042984,-534.0,9.753e-05,2]
[405948680,1771437042994,-708.0,9.753e-05,2]
[405948681,1771437043003,-567.0,9.753e-05,2]
[405948682,1771437043012,-621.0,9.753e-05,2]
[405948683,1771437043022,-154.0,9.753e-05,2]
[405948684,1771437043031,-484.0,9.753e-05,2]
[405948685,1771437043040,-500.0,9.808e-05,2]
[405948686,1771437043050,-500.0,9.808e-05,2]
[405948687,1771437043059,-420.0,9.808e-05,2]
[405948688,1771437043069,-1052.0,9.808e-05,2]
[405948689,1771437043078,-644.0,9.808e-05,2]
[405948690,1771437043088,-1061.0,9.808e-05,2]
[405948691,1771437043097,-534.0,9.808e-05,2]
[405948692,1771437043107,-708.0,9.808e-05,2]
[405948693,1771437043116,-567.0,9.808e-05,2]
[405948694,1771437043126,-621.0,9.808e-05,2]
[405948695,1771437043136,-500.0,9.863e-05,2]
[405948696,1771437043146,-290.08933819,9.863e-05,2]
[405948697,1771437043156,-420.0,9.863e-05,2]
[405948698,1771437043165,-1052.0,9.863e-05,2]
[405948699,1771437043175,-644.0,9.863e-05,2]
[405948700,1771437043184,-1061.0,9.863e-05,2]
[405948701,1771437043194,-534.0,9.863e-05,2]
[405948702,1771437043204,-708.0,9.863e-05,2]
[405948703,1771437043215,-567.0,9.863e-05,2]
[405948704,1771437043224,-621.0,9.863e-05,2]
[405948705,1771437043234,-6715.4735,9.9e-05,2]
[405948706,1771437043243,-500.0,9.917e-05,2]
[405948707,1771437043254,-420.0,9.917e-05,2]
[405948708,1771437043265,-1052.0,9.917e-05,2]
[405948709,1771437043275,-644.0,9.917e-05,2]
[405948710,1771437043283,-1061.0,9.917e-05,2]
[405948711,1771437043293,-534.0,9.917e-05,2]
[405948712,1771437043305,-708.0,9.917e-05,2]
[405948713,1771437043314,-567.0,9.917e-05,2]
[405948714,1771437043325,-621.0,9.917e-05,2]
[405948715,1771437043334,-4609.0,9.954e-05,2]
[405948716,1771437043343,-582.0,9.972e-05,2]
[405948717,1771437043352,-420.0,9.972e-05,2]
[405948718,1771437043361,-1052.0,9.972e-05,2]
[405948719,1771437043370,-644.0,9.972e-05,2]
[405948720,1771437043380,-1061.0,9.972e-05,2]
[405948721,1771437043388,-534.0,9.972e-05,2]
[405948722,1771437043398,-708.0,9.972e-05,2]
[405948723,1771437043407,-567.0,9.972e-05,2]
[405948724,1771437043416,-621.0,9.972e-05,2]
[405948725,1771437043425,-517.34793536,0.0001,2]
[405948726,1771437043434,-500.0,0.0001,2]
[405948727,1771437043443,-200.0,0.0001,2]
[405948728,1771437043452,-151.0,0.0001,2]
[405948729,1771437043461,-151.0,0.0001,2]
[405948730,1771437043471,-151.0,0.0001,2]
[405948731,1771437043480,-151.0,0.0001,2]
[405948732,1771437043490,-151.0,0.0001,2]
[405948733,1771437043499,-151.0,0.0001,2]
[405948734,1771437043508,-151.0,0.0001,2]
[405948735,1771437043517,-151.0,0.0001,2]
[405948736,1771437043526,-151.0,0.0001,2]
[405948737,1771437043536,-151.0,0.0001,2]
[405948738,1771437043549,-151.0,0.0001,2]
[405948739,1771437043559,-151.0,0.0001,2]
[405948740,1771437043567,-500.0,0.0001,2]
[405948741,1771437043577,-151.0,0.0001,2]
[405948742,1771437043588,-500.0,0.0001,2]
[405948743,1771437043597,-500.0,0.0001,2]
[405948744,1771437043606,-151.0,0.0001,2]
[405948745,1771437043617,-500.0,0.0001,2]
[405948747,1771437043626,-500.0,0.0001,2]
[405948748,1771437043636,-151.0,0.0001,2]
[405948750,1771437043647,-500.0,0.0001,2]
[405948751,1771437043656,-500.0,0.0001,2]
[405948752,1771437043666,-151.0,0.0001,2]
[405948753,1771437043675,-500.0,0.0001,2]
[405948754,1771437043687,-500.0,0.0001,2]
[405948755,1771437043698,-151.0,0.0001,2]
[405948756,1771437043707,-500.0,0.0001,2]
[405948757,1771437043716,-500.0,0.0001,2]
[405948758,1771437043725,-151.0,0.0001,2]
[405948759,1771437043734,-500.0,0.0001,2]
[405948761,1771437043743,-500.0,0.0001,2]
[405948763,1771437043752,-151.0,0.0001,2]
[405948765,1771437043762,-500.0,0.0001,2]
[405948766,1771437043771,-500.0,0.0001,2]
[405948767,1771437043780,-500.0,0.0001,2]
[405948768,1771437043789,-500.0,0.0001,2]
[405948769,1771437043798,-151.0,0.0001,2]
[405948770,1771437043807,-500.0,0.0001,2]
[405948771,1771437043816,-500.0,0.0001,2]
[405948772,1771437043827,-500.0,0.0001,2]
[405948773,1771437043838,-500.0,0.0001,2]
[405948774,1771437043848,-500.0,0.0001,2]
[405948775,1771437043858,-151.0,0.0001,2]
[405948776,1771437043868,-200.0,0.0001,2]
[405948777,1771437043880,-151.0,0.0001,2]
[405948778,1771437043891,-151.0,0.0001,2]
[405948779,1771437043902,-151.0,0.0001,2]
[405948780,1771437043911,-151.0,0.0001,2]
[405948781,1771437043920,-151.0,0.0001,2]
[405948782,1771437043930,-151.0,0.0001,2]
[405948783,1771437043940,-151.0,0.0001,2]
[405948784,1771437043951,-5600.0,0.0001,3]
[405948785,1771437043960,-151.0,0.0001,2]
[405948786,1771437043969,-151.0,0.0001,2]
[405948787,1771437043978,-151.0,0.0001,2]
[405948788,1771437043988,-1723.91274362,0.0001,2]
[405948789,1771437043997,-1723.91274362,0.0001,2]
[405948790,1771437044007,-420.0,0.00010027,2]
[405948791,1771437044017,-1052.0,0.00010027,2]
[405948792,1771437044027,-644.0,0.00010027,2]
[405948793,1771437044037,-1061.0,0.00010027,2]
[405948794,1771437044046,-534.0,0.00010027,2]
[405948795,1771437044056,-708.0,0.00010027,2]
[405948796,1771437044065,-567.0,0.00010027,2]
[405948797,1771437044074,-621.0,0.00010027,2]
[405948798,1771437044084,-420.0,0.00010082,2]
[405948799,1771437044093,-1052.0,0.00010082,2]
[405948800,1771437044102,-644.0,0.00010082,2]
[405948801,1771437044112,-1061.0,0.00010082,2]
[405948802,1771437044121,-534.0,0.00010082,2]
[405948803,1771437044130,-708.0,0.00010082,2]
[405948804,1771437044140,-567.0,0.00010082,2]
[405948805,1771437044149,-621.0,0.00010082,2]
[405948806,1771437044158,-1252.0,0.000101,2]
[405948807,1771437044167,-420.0,0.00010137,2]
[405948808,1771437044176,-1052.0,0.00010137,2]
[405948809,1771437044186,-644.0,0.00010137,2]
[405948810,1771437044195,-1061.0,0.00010137,2]
[405948811,1771437044205,-534.0,0.00010137,2]
[405948812,1771437044214,-708.0,0.00010137,2]
[405948813,1771437044223,-567.0,0.00010137,2]
[405948814,1771437044233,-621.0,0.00010137,2]
[405948815,1771437044243,-420.0,0.00010191,2]
[405948816,1771437044252,-1052.0,0.00010191,2]
[405948817,1771437044261,-644.0,0.00010191,2]
[405948818,1771437044271,-1061.0,0.00010191,2]
[405948819,1771437044283,-534.0,0.00010191,2]
[405948820,1771437044292,-708.0,0.00010191,2]
[405948821,1771437044301,-567.0,0.00010191,2]
[405948822,1771437044310,-621.0,0.00010191,2]
[405948823,1771437044319,-420.0,0.00010246,2]
[405948824,1771437044328,-1052.0,0.00010246,2]
[405948825,1771437044337,-644.0,0.00010246,2]
[405948826,1771437044347,-1061.0,0.00010246,2]
[405948827,1771437044356,-534.0,0.00010246,2]
[405948828,1771437044365,-708.0,0.00010246,2]
[405948829,1771437044376,-567.0,0.00010246,2]
[405948830,1771437044387,-621.0,0.00010246,2]
[405948831,1771437044397,-1000.0,0.00010274,2]
[405948832,1771437044407,-420.0,0.00010301,2]
[405948833,1771437044417,-1052.0,0.00010301,2]
[405948834,1771437044427,-644.0,0.00010301,2]
[405948835,1771437044437,-1061.0,0.00010301,2]
[405948836,1771437044448,-534.0,0.00010301,2]
[405948837,1771437044458,-708.0,0.00010301,2]
[405948838,1771437044468,-567.0,0.00010301,2]
[405948839,1771437044476,-621.0,0.00010301,2]
[405948840,1771437044485,-420.0,0.00010356,2]
[405948841,1771437044495,-1052.0,0.00010356,2]
[405948842,1771437044504,-644.0,0.00010356,2]
[405948843,1771437044514,-1061.0,0.00010356,2]
[405948844,1771437044523,-534.0,0.00010356,2]
[405948845,1771437044532,-708.0,0.00010356,2]
[405948846,1771437044544,-567.0,0.00010356,2]
[405948847,1771437044553,-621.0,0.00010356,2]
[405948848,1771437044563,-420.0,0.0001041,2]
[405948849,1771437044571,-1052.0,0.0001041,2]
[405948850,1771437044581,-644.0,0.0001041,2]
[405948851,1771437044591,-1061.0,0.0001041,2]
[405948852,1771437044600,-534.0,0.0001041,2]
[405948853,1771437044610,-708.0,0.0001041,2]
[405948854,1771437044621,-567.0,0.0001041,2]
[405948855,1771437044631,-621.0,0.0001041,2]
[405948856,1771437044641,-1600.0,0.00010449,2]
[405948857,1771437044651,-282.0,0.00010465,2]
[405948858,1771437044661,-1058.6050016,0.00010465,2]
[405948859,1771437044669,-650.07562476,0.00010465,2]
[405948860,1771437044680,-1063.0,0.00010465,2]
[405948861,1771437044690,-534.44440465,0.00010465,2]
[405948862,1771437044700,-718.0,0.00010465,2]
[405948863,1771437044710,-581.0,0.00010465,2]
[405948864,1771437044722,-629.0,0.00010465,2]
[405948865,1771437044731,-539.13796622,0.00010548,2]
[405948866,1771437044741,-200.0,0.00010548,2]
[405948867,1771437044750,-32853.2111,0.000109,2]
[405948868,1771437044759,-1000.0,0.000109,2]
[405948869,1771437044768,-6453.0,0.0001095,2]
[405948870,1771437044777,-200.0,0.00011096,2]
[405948871,1771437044786,-33900.5201987,0.00011099,2]
[405948872,1771437044795,-33900.52019867,0.00011099,2]
[405948873,1771437044805,-33900.52019867,0.00011099,2]
[405948874,1771437044814,-33900.52019867,0.00011099,2]
[405948875,1771437044823,-21223.49816198,0.00011099,2]
[405948876,1771437044832,-21223.49816196,0.00011099,2]
[405948877,1771437044841,-21223.49816196,0.00011099,2]
[405948878,1771437044850,-21223.49816196,0.00011099,2]
[405948879,1771437044859,-193.0,0.00011114,2]
[405948880,1771437044869,-150.0,0.00011233,2]
[405948881,1771437044877,-1000.0,0.00011301,2]
[405948882,1771437044886,-1600.0,0.00011399,2]
[405948883,1771437044895,-152.0,0.00011469,2]
[405948884,1771437044905,-5732.22,0.00011639,2]
[405948885,1771437044914,-200.0,0.00011644,2]
[405948886,1771437044923,-33900.52019867,0.0001172,2]
[405948887,1771437044932,-21223.49816196,0.00011775,2]
[405948888,1771437044941,-200.0,0.00012192,2]
[405948889,1771437044950,-1000.0,0.00012329,2]
[405948890,1771437044959,-517.34793536,0.000124,2]
[405948891,1771437044968,-200.0,0.0001274,2]
[405948892,1771437044977,-529.04,0.0001275,2]
[405948893,1771437044986,-33900.52019867,0.00012951,2]
[405948894,1771437044995,-21223.49816196,0.00012995,2]
[405948895,1771437045005,-500.0,0.00013,2]
[405948896,1771437045013,-500.0,0.00013,2]
[405948897,1771437045023,-500.0,0.00013,2]
[405948898,1771437045032,-500.0,0.00013,2]
[405948899,1771437045041,-500.0,0.00013,2]
[405948900,1771437045050,-500.0,0.00013,2]
[405948901,1771437045059,-500.0,0.00013,2]
[405948902,1771437045068,-500.0,0.00013,2]
[405948903,1771437045078,-500.0,0.00013,2]
[405948904,1771437045087,-500.0,0.00013,2]
[405948905,1771437045096,-500.0,0.00013,2]
[405948906,1771437045105,-500.0,0.00013,2]
[405948907,1771437045114,-500.0,0.00013,2]
[405948908,1771437045123,-500.0,0.00013,2]
[405948909,1771437045132,-500.0,0.00013,2]
[405948910,1771437045142,-800.0,0.00013,2]
[405948911,1771437045151,-500.0,0.00013,2]
[405948912,1771437045160,-160.0,0.00013138,2]
[405948913,1771437045170,-173.62051493,0.00013138,2]
[405948914,1771437045179,-200.0,0.00013288,2]
[405948915,1771437045188,-301.98,0.00013395,2]
[405948916,1771437045197,-3240.0,0.00013425,2]
[405948917,1771437045206,-180.65136628,0.00013437,2]
[405948918,1771437045215,-13856.88,0.0001344,2]
[405948919,1771437045224,-1497.17435983,0.00013491,2]
[405948920,1771437045234,-10000.0,0.00013627,2]
[405948921,1771437045243,-600.0,0.00013678,2]
[405948922,1771437045253,-600.0,0.00013678,2]
[405948923,1771437045262,-201.93,0.00013678,2]
[405948924,1771437045271,-500.0,0.00013698,2]
[405948925,1771437045280,-500.0,0.00013698,2]
[405948926,1771437045289,-500.0,0.00013698,2]
[405948927,1771437045299,-500.0,0.00013698,2]
[405948928,1771437045308,-500.0,0.00013698,2]
[405948929,1771437045317,-500.0,0.00013698,2]
[405948930,1771437045326,-500.0,0.00013698,2]
[405948931,1771437045335,-500.0,0.00013698,2]
[405948932,1771437045344,-287.2,0.00013698,2]
[405948933,1771437045354,-500.0,0.00013698,2]
[405948934,1771437045363,-500.0,0.00013698,2]
[405948935,1771437045372,-500.0,0.00013698,2]
[405948936,1771437045381,-500.0,0.00013698,2]
[405948937,1771437045389,-500.0,0.00013698,2]
[405948938,1771437045399,-500.0,0.00013698,2]
[405948939,1771437045408,-500.0,0.00013698,2]
[405948940,1771437045418,-500.0,0.00013698,2]
[405948941,1771437045427,-500.0,0.00013698,2]
[405948942,1771437045436,-500.0,0.00013698,2]
[405948943,1771437045445,-500.0,0.00013698,2]
[405948944,1771437045454,-500.0,0.00013698,2]
[405948945,1771437045463,-500.0,0.00013698,2]
[405948946,1771437045472,-500.0,0.00013698,2]
[405948947,1771437045482,-500.0,0.00013698,2]
[405948948,1771437045491,-500.0,0.00013698,2]
[405948949,1771437045500,-500.0,0.00013698,2]
[405948950,1771437045509,-500.0,0.00013698,2]
[405948951,1771437045518,-500.0,0.00013698,2]
[405948952,1771437045528,-334.63335297,0.00013698,2]
[405948953,1771437045540,-500.0,0.00013698,2]
[405948954,1771437045550,-500.0,0.00013698,2]
[405948955,1771437045560,-500.0,0.00013698,2]
[405948956,1771437045569,-500.0,0.00013698,2]
[405948957,1771437045579,-500.0,0.00013698,2]
[405948958,1771437045587,-500.0,0.00013698,2]
[405948959,1771437045597,-500.0,0.00013698,2]
[405948960,1771437045606,-500.0,0.00013698,2]
[405948961,1771437045618,-500.0,0.00013698,2]
[405948962,1771437045629,-595.96,0.00013698,2]
[405948963,1771437045639,-595.96,0.00013698,2]
[405948964,1771437045648,-887.72,0.00013698,2]
[405948965,1771437045658,-887.72,0.00013698,2]
[405948966,1771437045667,-500.0,0.00013698,2]
[405948967,1771437045677,-500.0,0.00013698,2]
[405948968,1771437045686,-500.0,0.00013698,2]
[405948969,1771437045696,-500.0,0.00013698,2]
[405948970,1771437045707,-500.0,0.00013698,2]
[405948971,1771437045716,-500.0,0.00013698,2]
[405948972,1771437045725,-500.0,0.00013698,2]
[405948973,1771437045734,-500.0,0.00013698,2]
[405948974,1771437045744,-500.0,0.00013698,2]
[405948975,1771437045753,-623.2,0.00013698,2]
[405948976,1771437045764,-623.2,0.00013698,2]
[405948977,1771437045773,-200.0,0.00013699,2]
[405948978,1771437045786,-261.59,0.00013699,2]
[405948979,1771437045797,-217.99,0.00013699,2]
[405948980,1771437045807,-181.66,0.00013699,2]
[405948981,1771437045816,-151.38,0.00013699,2]
[405948982,1771437045826,-756.95,0.00013699,2]
[405948983,1771437045836,-500.0,0.00013699,2]
[405948984,1771437045846,-214.59643228,0.000137,2]
[405948985,1771437045855,-595.96,0.00013726,2]
[405948986,1771437045865,-887.72,0.00013726,2]
[405948987,1771437045876,-503.46225796,0.00013727,2]
[405948989,1771437045885,-163.82152593,0.00013727,2]
[405948991,1771437045895,-163.91978411,0.00013727,2]
[405948993,1771437045904,-500.0,0.00013727,2]
[405948995,1771437045914,-500.0,0.00013727,2]
[405948997,1771437045923,-500.0,0.00013727,2]
[405948999,1771437045932,-500.0,0.00013727,2]
[405949001,1771437045941,-500.0,0.00013727,2]
[405949002,1771437045950,-500.0,0.00013727,2]
[405949003,1771437045960,-160.72774547,0.00013727,2]
[405949004,1771437045969,-500.95146285,0.00013727,2]
[405949005,1771437045978,-645.39288047,0.00013727,2]
[405949006,1771437045987,-337.39891072,0.00013727,2]
[405949007,1771437045997,-502.80837913,0.00013727,2]
[405949008,1771437046007,-500.0,0.00013727,2]
[405949009,1771437046016,-500.0,0.00013727,2]
[405949010,1771437046026,-500.0,0.00013727,2]
[405949011,1771437046035,-500.0,0.00013727,2]
[405949012,1771437046044,-163.59603314,0.00013727,2]
[405949013,1771437046053,-500.0,0.00013727,2]
[405949014,1771437046063,-500.0,0.00013727,2]
[405949015,1771437046072,-308.32139372,0.00013727,2]
[405949016,1771437046081,-500.0,0.00013727,2]
[405949017,1771437046093,-505.28452371,0.00013727,2]
[405949018,1771437046102,-160.97273702,0.00013727,2]
[405949019,1771437046112,-500.0,0.00013727,2]
[405949020,1771437046121,-500.0,0.00013727,2]
[405949021,1771437046131,-482.0,0.00013727,2]
[405949022,1771437046140,-501.74658448,0.00013727,2]
[405949023,1771437046149,-505.2606858,0.00013727,2]
[405949024,1771437046159,-502.19516001,0.00013727,2]
[405949025,1771437046168,-500.0,0.00013727,2]
[405949026,1771437046178,-500.0,0.00013727,2]
[405949027,1771437046187,-576.27008267,0.00013727,2]
[405949028,1771437046196,-500.0,0.00013727,2]
[405949029,1771437046205,-502.06920356,0.00013727,2]
[405949030,1771437046214,-501.41908298,0.00013727,2]
[405949031,1771437046223,-500.0,0.00013727,2]
[405949032,1771437046233,-500.61236308,0.00013727,2]
[405949033,1771437046242,-162.44090576,0.00013727,2]
[405949034,1771437046252,-161.91543502,0.00013727,2]
[405949035,1771437046261,-162.00011726,0.00013727,2]
[405949036,1771437046271,-523.76939094,0.00013727,2]
[405949037,1771437046280,-500.0,0.00013727,2]
[405949038,1771437046289,-500.0,0.00013727,2]
[405949039,1771437046298,-500.0,0.00013727,2]
[405949041,1771437046307,-500.0,0.00013727,2]
[405949044,1771437046316,-500.0,0.00013727,2]
[405949046,1771437046325,-167.11974204,0.00013727,2]
[405949048,1771437046334,-500.0,0.00013727,2]
[405949050,1771437046344,-500.0,0.00013727,2]
[405949051,1771437046354,-500.0,0.00013727,2]
[405949053,1771437046363,-160.59858326,0.00013727,2]
[405949055,1771437046372,-160.46079071,0.00013727,2]
[405949057,1771437046381,-183.54139148,0.00013727,2]
[405949059,1771437046390,-500.0,0.00013727,2]
[405949061,1771437046400,-500.0,0.00013727,2]
[405949062,1771437046409,-500.0,0.00013727,2]
[405949063,1771437046418,-377.84784353,0.00013727,2]
[405949064,1771437046428,-500.0,0.00013727,2]
[405949065,1771437046439,-500.0,0.00013727,2]
[405949066,1771437046449,-500.0,0.00013727,2]
[405949067,1771437046459,-500.0,0.00013727,2]
[405949068,1771437046469,-162.61077448,0.00013727,2]
[405949069,1771437046479,-500.0,0.00013727,2]
[405949070,1771437046490,-500.0,0.00013727,2]
[405949071,1771437046501,-500.0,0.00013753,2]
[405949072,1771437046511,-500.0,0.00013754,2]
[405949073,1771437046521,-500.0,0.00013809,2]
[405949074,1771437046531,-200.0,0.00013836,2]
[405949075,1771437046551,-500.0,0.00013863,2]
[405949076,1771437046571,-500.0,0.00013918,2]
[405949077,1771437046593,-3158.5,0.00013973,2]
[405949078,1771437046605,-513.70916545,0.00013973,2]
[405949079,1771437046616,-3125.08,0.00014028,2]
[405949080,1771437046626,-500.0,0.0001405,2]
[405949081,1771437046635,-795.55172821,0.0001405,2]
[405949082,1771437046646,-500.0,0.0001405,2]
[405949083,1771437046656,-500.0,0.0001405,2]
[405949084,1771437046666,-500.0,0.0001405,2]
[405949085,1771437046677,-500.0,0.0001405,2]
[405949086,1771437046687,-500.0,0.0001405,2]
[405949087,1771437046700,-500.0,0.0001405,2]
[405949088,1771437046712,-500.0,0.0001405,2]
[405949089,1771437046722,-500.0,0.0001405,2]
[405949090,1771437046732,-500.0,0.0001405,2]
[405949091,1771437046742,-500.0,0.0001405,2]
[405949092,1771437046752,-500.0,0.0001405,2]
[405949093,1771437046763,-500.0,0.0001405,2]
[405949094,1771437046773,-500.0,0.0001405,2]
[405949095,1771437046784,-500.0,0.0001405,2]
[405949096,1771437046794,-500.0,0.0001405,2]
[405949097,1771437046804,-500.0,0.0001405,2]
[405949098,1771437046814,-500.0,0.0001405,2]